Cogmind - Beta 15 @@@ ROGUE MODE // 2025.06.21 @ 08:10:49 Player: Fleshy Vegetable Bird Result: Destroyed by Autobeam Turret with Autobeam Performance ------------- Evolutions (0) 0 Regions Visited (2) 400 Robots Destroyed (17) 85 Value Destroyed (212) 212 Prototype IDs (2) 40 Alien Tech Used (0) 0 Bonus (0) 0 TOTAL SCORE: 737 Bonus ------- None Cogmind --------- Core Integrity 0/250 Matter 300/300 Energy 99/100 System Corruption 0% Temperature Cool (6) Movement Rolling (95) Ox1 Location -10/Subcaves Parts ------- > --- POWER (1) -------- (None) > --- PROPULSION (2) --- Wheel > --- UTILITY (2) ------ Large Storage Unit > --- WEAPON (2) ------- (None) > --- INVENTORY (15) --- Wheel Wheel Wheel Wheel Large Storage Unit Assault Rifle Mining Laser Mining Laser Peak State ------------ > --- POWER ------------ Ion Engine > --- PROPULSION ------- Wheel Wheel > --- UTILITY ---------- Large Storage Unit Seismic Detector > --- WEAPON ----------- Medium Laser Small Laser > --- INVENTORY -------- Wheel Wheel Wheel Wheel Wheel Small Storage Unit Large Storage Unit Assault Rifle Mining Laser Mining Laser [Rating: 8] Favorites ----------- Power Ion Engine Engine Ion Engine Propulsion Wheel Wheel Wheel Utility Large Storage Unit Device Seismic Detector Storage Large Storage Unit Weapon Medium Laser Energy Gun Medium Laser Build | -11 -10 -10 ------- Run | Yrd Mat Sub Slots Evolved . | . . . Power . | . . . Propulsion . | . . . Utility . | . . . Weapon . | . . . Parts Attached 10 | 7 1 2 Power 1 | 1 . . Engine 1 | 1 . . Core . | . . . Reactor . | . . . Propulsion 4 | 2 . 2 Treads . | . . . Leg . | . . . Wheel 4 | 2 . 2 Hover . | . . . Flight . | . . . Utility 3 | 2 1 . Device 1 | 1 . . Storage 2 | 1 1 . Processor . | . . . Hackware . | . . . Protection . | . . . Artifact . | . . . Weapon 2 | 2 . . Energy Gun 2 | 2 . . Energy Cannon . | . . . Ballistic Gun . | . . . Ballistic Cannon . | . . . Launcher . | . . . Special Weapon . | . . . Impact Weapon . | . . . Slashing Weapon . | . . . Piercing Weapon . | . . . Special Melee Weapon . | . . . Unidentified Prototypes . | . . . Parts Lost 7 | . . 7 Power 1 | . . 1 Propulsion 3 | . . 3 Utility 1 | . . 1 Weapon 2 | . . 2 Highest Loss Streak 3 | . . 3 To Critical Strikes . | . . . Average Backups 8 | 1 9 9 Power . | . . . Propulsion 4 | . 4 5 Utility 1 | . 1 1 Weapon 2 | 1 2 3 Tool/Special . | . . . Unused Backups 8 | . . 8 Power . | . . . Propulsion 4 | . . 4 Utility 1 | . . 1 Weapon 3 | . . 3 Tool/Special . | . . . Average Slot Usage (%) 93 | . 100 70 Engine 11 | . 14 2 Wheel 27 | . 28 25 Device 12 | . 14 7 Storage 14 | . 14 14 Energy Gun 26 | . 28 20 Peak Build Rating 8 | 7 8 8 Average Rating 6 | 5 7 5 On Entrance 5 | . 7 8 Naked Turns . | . . . Heaviest Build 29 | 14 29 29 Greatest Support 20 | 20 20 20 Greatest Overweight (x) 2 | 1 1 2 Average Overweight (x) . | . . 1 Largest Inventory Capacity 15 | 8 15 15 Average Capacity 13 | 7 14 15 Most Carried 11 | 5 11 10 Average Carried 8 | 1 9 9 Final Capacity 15 | 8 15 15 Final Carried 10 | 5 10 8 Class Distribution -------------------- 100% | Mutant Dominant Class ---------------- Mutant | -10/Materials Mutant | -10/Subcaves Resources | -11 -10 -10 ----------- Run | Yrd Mat Sub Matter Collected 290 | 270 10 10 Remotely . | . . . Salvage Created 437 | 187 118 132 Parts 38 | 16 14 8 Haulers Intercepted 1 | . 1 . Recyclers Shooed . | . . . Parts Field Recycled . | . . . Retrieved Matter . | . . . Parts Self-Destructed . | . . . Prevented . | . . . Kills | -11 -10 -10 ------- Run | Yrd Mat Sub Combat Hostiles Destroyed 6 | . 3 3 Guns 6 | . 3 3 Classes Destroyed 7 | 3 3 1 Worker 3 | 2 1 . Tunneler 5 | 5 . . Hauler 1 | . 1 . Recycler 1 | 1 . . Watcher 1 | . 1 . Swarmer 3 | . 3 . Subdweller 3 | . . 3 Best Kill Streak 5 | 5 3 2 Combat Bots Only 3 | . 3 2 Max Kills in Single Turn 1 | 1 1 1 Gunslinging . | . . . Exploded . | . . . Melee . | . . . Uniques/NPCs Destroyed . | . . . Combat | -11 -10 -10 -------- Run | Yrd Mat Sub Hostile Shots Fired 71 | . 8 63 Missed 26 | . 3 23 Hits 45 | . 5 40 Projectile 45 | . 5 40 AOE 4 | . . 4 Damage Taken 719 | . 40 679 Core 255 | . 8 247 Absorbed by Shields . | . . . Core Remaining (%) 100 | 100 . . Volleys Fired 62 | 18 25 19 Largest 2 | 2 2 2 Hottest 90 | 90 90 90 Shots Fired 123 | 36 49 38 Gun 123 | 36 49 38 Cannon . | . . . Launcher . | . . . Special . | . . . Kinetic . | . . . Thermal 123 | 36 49 38 Explosive . | . . . Electromagnetic . | . . . Robot Hit Streak 12 | 5 12 10 Robot Miss Streak 8 | 2 8 2 Penetration Max . | . . . Secondary Targets . | . . . Shots Hit Robots 72 | 19 25 28 Core Hits 25 | 9 7 9 Critical Kills . | . . . Critical Parts Destroyed . | . . . Critical Strikes 3 | . 3 . Burn 3 | . 3 . Melee Attacks . | . . . Impact . | . . . Slashing . | . . . Piercing . | . . . Sneak Attacks . | . . . Combat Hostiles . | . . . Follow-up Attacks . | . . . Damage Inflicted 852 | 229 300 323 Guns 852 | 229 300 323 Cannons . | . . . Explosions . | . . . Melee . | . . . Ramming . | . . . Kinetic . | . . . Thermal 852 | 229 300 323 Explosive . | . . . Electromagnetic . | . . . Impact . | . . . Slashing . | . . . Piercing . | . . . Highest Corruption . | . . . Average Corruption . | . . . Corruption Purged . | . . . Corruption Blocked . | . . . Overload Shots . | . . . Overflow Damage . | . . . Projectiles . | . . . Explosions . | . . . Melee . | . . . Knockbacks . | . . . Impact . | . . . Kinetic . | . . . Secondary . | . . . Self-Inflicted Damage . | . . . Shots . | . . . Rammed . | . . . Targets Rammed . | . . . Kicked . | . . . Crushed . | . . . Highest Temperature 180 | 180 160 . Average Temperature 63 | 78 51 . Received Heat Transfer 120 | . . 120 Siege Activations . | . . . Martial Activations . | . . . Shielding Activations . | . . . Robots Disrupted . | . . . Combat Hostiles . | . . . Robots Corrupted . | . . . Combat Hostiles . | . . . Parts Fried . | . . . Impact Corruptions . | . . . Robots Melted . | . . . Combat Hostiles . | . . . Parts Melted 4 | 2 2 . Heat Transferred 2466 | 583 1039 844 Parts Sabotaged . | . . . Parts Stolen . | . . . Parts Stripped . | . . . Power Chain Reactions . | . . . Alert | -11 -10 -10 ------- Run | Yrd Mat Sub Maximum Alert Level . | . . . Low Security (%) 100 | 100 100 . Level 1 . | . . . Level 2 . | . . . Level 3 . | . . . Level 4 . | . . . Level 5 . | . . . High Security . | . . . Max Security . | . . . Peak Influence 85 | 15 85 . Initial . | . . . Average 13 | 3 16 . Influence Increases 171 | 40 116 15 Destroy 0b10 Robot/C 60 | . 60 . Destroy 0b10 Robot/NC 55 | 40 15 . Destroy Leader 14 | . 14 . Successful Hack 12 | . 12 . Lose Combat Pursuer 30 | . 15 15 Influence Decreases 171 | 40 116 15 Time Decay 156 | 40 116 . Lost Part 15 | . . 15 Squads Dispatched . | . . . Investigation . | . . . Extermination . | . . . Reinforcement . | . . . Assault . | . . . Garrison . | . . . Intercept . | . . . Searches Triggered . | . . . Construction Impeded . | . . . Haulers Reinforced . | . . . Active Scanning Responses . | . . . Cargo Convoy Interrupts . | . . . Stealth | -11 -10 -10 --------- Run | Yrd Mat Sub Distress Signals . | . . . Communications Jammed . | . . . Distress Signals . | . . . Times Spotted 23 | . 10 13 Peak Tracking Total 9 | . 4 9 Tactical Retreats 2 | . 1 1 Traps | -11 -10 -10 ------- Run | Yrd Mat Sub Traps Triggered . | . . . Indirectly . | . . . Trap Hack Attempts . | . . . Triggered . | . . . Disarmed . | . . . Reprogrammed . | . . . Reused . | . . . Traps Extracted . | . . . Installed . | . . . Triggered . | . . . Machines | -11 -10 -10 ---------- Run | Yrd Mat Sub Machines Disabled . | . . . Max in Single Turn . | . . . Machines Repaired . | . . . Machines Dismantled . | . . . Machines Sabotaged . | . . . Overloaded Fab Kills . | . . . Hacking | -11 -10 -10 --------- Run | Yrd Mat Sub Machines Accessed 3 | . 3 . Terminals 3 | . 3 . Fabricators . | . . . Repair Stations . | . . . Recycling Units . | . . . Scanalyzers . | . . . Garrison Access . | . . . Total Hacks 8 | . 8 . Successful 3 | . 3 . Failed 5 | . 5 . Catastrophic . | . . . Database Lockouts . | . . . Manual 5 | . 5 . Terminals 8 | . 8 . Fabricators . | . . . Repair Stations . | . . . Recycling Units . | . . . Scanalyzers . | . . . Garrison Access . | . . . Terminal Hacks 3 | . 3 . Robot Analysis 2 | . 2 . Prototype ID Bank 1 | . 1 . Fabricator Hacks . | . . . Repair Station Hacks . | . . . Recycling Unit Hacks . | . . . Scanalyzer . | . . . Garrison Access Hacks . | . . . Unauthorized Hacks . | . . . Terminals . | . . . Fabricators . | . . . Repair Stations . | . . . Recycling Units . | . . . Scanalyzers . | . . . Garrison Access . | . . . Data Cores Recovered . | . . . Used . | . . . Hacking Detections 3 | . 3 . Full Trace Events . | . . . Feedback Events . | . . . Feedback Blocked . | . . . Robot Schematics Acquired . | . . . Robots Built . | . . . Authchips . | . . . Time . | . . . Total Robot Build Rating . | . . . Part Schematics Acquired . | . . . Parts Built . | . . . Authchips . | . . . Time . | . . . Total Part Build Rating . | . . . Parts Repaired . | . . . Time . | . . . Parts Recycled . | . . . Recycled Matter . | . . . Retrieved Matter . | . . . Retrieved Components . | . . . Parts Scanalyzed . | . . . Part Schematics Acquired . | . . . Parts Damaged . | . . . Bothacking | -11 -10 -10 ------------ Run | Yrd Mat Sub Used RIF Installer . | . . . Robots Hacked . | . . . Non-combat . | . . . Combat . | . . . Robot Hacks Applied . | . . . Relay Couplers Released . | . . . Fabnet Peak Effective % . | . . . Robots Rewired . | . . . Allies Hacked . | . . . Hacks Repelled . | . . . Allies | -11 -10 -10 -------- Run | Yrd Mat Sub Total Allies . | . . . Largest Group . | . . . Highest-Rated Group . | . . . Highest-Rated Ally . | . . . Total Orders . | . . . Ally Attacks . | . . . Total Damage . | . . . Kills . | . . . Allies Corrupted . | . . . Allies Melted . | . . . Intel | -11 -10 -10 ------- Run | Yrd Mat Sub Active Infowar (turns) 740 | 77 581 82 Seismic 740 | 77 581 82 Robot Analysis Total 2 | . 2 . Derelict Logs Recovered . | . . . Drone Launches . | . . . Drone Recoveries . | . . . Exploration | -11 -10 -10 ------------- Run | Yrd Mat Sub Turns Passed 909 | 160 581 168 Spaces Moved 722 | 103 509 110 Core 7 | 7 . . Treads . | . . . Legs . | . . . Wheels 715 | 96 509 110 Hover . | . . . Flight . | . . . Fastest Speed 50 | 50 80 95 Average Speed 94 | 87 94 95 Slowest Speed 110 | 100 95 110 Overloaded Moves . | . . . Propulsion Burnouts . | . . . Robots Hopped . | . . . Potential Cave-ins . | . . . Cave-ins Triggered . | . . . Exploration Rate (%) 23 | 4 52 13 Regions Visited 2 Branch Regions 1 Pre-discovered Areas . | . . . Known Exits Taken . | . . . Unknown Exits Taken 2 | 1 1 . Scrap Searched . | . . . Spaces Dug . | . . . Terrain Destroyed . | . . . Melee . | . . . Projectile . | . . . AOE . | . . . Terrain Rammed . | . . . Walls Destroyed . | . . . Machines Disabled . | . . . Actions | -11 -10 -10 --------- Run | Yrd Mat Sub Total 825 | 132 558 135 Wait 22 | . 18 4 Move 720 | 102 508 110 Hop . | . . . Pick Up 10 | 5 5 . Fast Attach 7 | 7 . . Attach 2 | . . 2 Detach . | . . . Swap 1 | . 1 . Drop 1 | . 1 . Fire 62 | 18 25 19 Melee . | . . . Ram . | . . . Kick . | . . . Crush . | . . . Escape Stasis . | . . . Rewire . | . . . Trap . | . . . Miscellaneous . | . . . Route ------- -11/Scrapyard -10/Materials (discovered 4 exits: [*Mat] / [*Min x2] / [*Sub]) -10/Subcaves (discovered 1 exit: [*Rec]) History --------- Turn | Location | Event 18 | -11/Scrapyard | Discovered new exit (range 16) 161 | -11/Scrapyard | Entered Materials 184 | -10/Materials | Discovered new exit (range 16) 270 | -10/Materials | Discovered new exit (range 14) 301 | -10/Materials | Build established: Mutant 414 | -10/Materials | Discovered new exit (range 4) 731 | -10/Materials | Discovered new exit (range 12) 742 | -10/Materials | Entered Subcaves 801 | -10/Subcaves | Ambushed by Subdweller buried in earth 801 | -10/Subcaves | Ambushed by Subdweller buried in earth 801 | -10/Subcaves | Ambushed by Subdweller buried in earth 802 | -10/Subcaves | Core integrity fell below 50% 827 | -10/Subcaves | Core integrity fell below 20% 905 | -10/Subcaves | Discovered new exit (range 9) 910 | -10/Subcaves | Destroyed by Autobeam Turret with Autobeam Last Messages --------------- 00783_ Subatomizers dissect the Sub. Power Source, destroying it. 00787_ Wheel destroyed. 00796_ Subatomizers dissect the Disposable Heat Sink. 00802_ 7Q-T9R(R): "THANKSYOU!" 00802_ NY-D1U(R): "ARGHSUB!" 00802_ UJ-ECG(R): "ARGHSUB!" 00805_ XR-2UF(R) destroyed. 00807_ Subatomizers dissect the Disposable Heat Sink. 00810_ Acquired 10 matter. 00824_ Seismic Detector destroyed. 00827_ Sml. Laser destroyed. 00897_ Wheel destroyed. 00905_ S-10 Pest springs to life. 00905_ EXIT=FOUND 00906_ Wheel destroyed. 00908_ Med. Laser destroyed. 00909_ S-10 Pest destroyed. Map ----- +----------------------------------------------------+ | ????????????????????????????????# % #?????????? | | ???????????????????????????????## ##?????????? | | ??????????????????????????????## ##??????????? | | ??????????????????????????????# #?###???????? | | ??????????????????????????????# ## ##??????? | | ??????????????????????????????## #??????? | | ???????????????????????????????# #??????? | | ??????????????????????? ?????## #??????? | | ?????????????????????? ??????# #??????? | | ?????????????????????? ?????## #??????? | | ?????????????????????? ?????# ####??????? | | ??????????????????????# ????# ##?????????? | | ???????????????????????# ##### ###????????? | | ????????????????????????# #????????? | | ??????????????????????????# #????????? | | ??????????????????????????# ##???????? | | ??????????????????????????# #???????? | | ??????????????????????????##### #???????? | | ??????????????????????????????## #???????? | | ???????????????????????????????## #???????? | | ????????????????????????????????# ## ##???????? | | ????????????????????????###????## ## ##????????? | | ????????????????????#####<###### ####?????????? | | ????????????????????#"""" """"# ##???????????? | | ????????????????????#" " " "# ##??????????? | | ????????????????????#" t@t "## ##?????????? | | ????????????????????#s ### #?????????? | | ????????????????????# ### #?????????? | | ????????????????????#"s = "## ### #?????????? | | ????????????????????#### *%#### ### ##????????? | | ???????????????????????# s ## #????????? | | ???????????????????????# #????????? | | ???????????????????????####### ## ##???????? | | ?????????????????????????????##### ##??????? | | ?????????????????????????????????## #??????? | | ??????????????????????????????????### #??????? | | ????????????????????????????????????## #??????? | | ?????????????????????????????????????### ##??????? | | ???????????????????????????????????????###???????? | | ?????????????????????????????????????????????????? | | ?????????????????????????????????????????????????? | | ?????????????????????????????????????????????????? | | ?????????????????????????????????????????????????? | | ?????????????????????????????????????????????????? | | ?????????????????????????????????????????????????? | | ?????????????????????????????????????????????????? | | ?????????????????????????????????????????????????? | | ?????????????????????????????????????????????????? | | ?????????????????????????????????????????????????? | | ?????????????????????????????????????????????????? | +----------------------------------------------------+ Best States ------------- Heat Dissipation 25 Energy Generation 10 Energy Capacity 250 Matter Stores 300 Matter Capacity 300 Sight Range 16 Terrain Scan Density 10 Evasion (%) 44 Item Schematics ----------------- None Robot Schematics ------------------ None Fabricated ------------ Nothing Repaired ---------- Nothing Alien Tech Used ----------------- None Achievements -------------- None Challenges ------------ None Game ------ Seed TimingSpliceLog Manual? 0 Play Time 00:07:51 Cumulative 388.5 hours Start 2025.06.21 @ 08:04:34 End 2025.06.21 @ 08:10:49 Sessions 1 Manual Loads 0 Difficulty Rogue Special Mode None Game No. 434 Rogue 434 Adventurer 0 Explorer 0 Win Type - Total 6 Types 3/1/1/1/0/0/0/0/0/0 Lore% 73 Gallery% 71 Achievement% 68 Wizard Run 0 Options --------- Layout 1 ASCII 0 Keyboard 0 Movement Numpad Keybinds 0 Fullscreen 1 Font 32/SmallcapsGlow Map View 50x35 Zoom Use 0% Tactical HUD 1 Map Filters NONE Filters NONE Steam 1 RUN: 326b41c6-4baa-4cc9-ab71-2fd7344c7b05